bitfinex-derivatives/quotes_ETHF0:USTF0_20240913
["timestamp","ask_amount","ask_price","bid_price","bid_amount"]
[1726262346016,3.2078,2433.1,2433.0,3.46621682]
[1726262346217,0.41072,2433.4,2433.1,0.41077]
[1726262346415,0.41072,2433.4,2433.2,2.53082686]
[1726262346625,0.41072,2433.4,2433.2,1.05759588]
[1726262346914,0.41073,2433.3,2433.2,1.05759588]
[1726262349316,0.41073,2433.3,2433.2,3.06087823]
[1726262349513,0.41072,2433.4,2433.2,1.47451771]
[1726262349819,0.41072,2433.4,2433.3,1.05865096]
[1726262350313,0.41072,2433.4,2433.3,2.53354429]
[1726262351204,0.41072,2433.4,2433.3,2.53351657]
[1726262351516,0.41072,2433.4,2433.3,1.47486561]
[1726262351709,0.41072,2433.4,2433.3,1.05929639]
[1726262353021,3.2078,2433.5,2433.3,1.05929639]
[1726262353312,3.2078,2433.5,2433.4,1.47522331]
[1726262354017,3.6185,2433.5,2433.4,1.47522331]
[1726262354217,3.6185,2433.5,2433.4,3.06161714]
[1726262354420,3.2078,2433.6,2433.4,1.47522331]
[1726262354716,3.61844,2433.9,2433.6,0.41067]
[1726262354922,3.2078,2433.9,2433.7,2.53406379]
[1726262355218,3.2078,2433.9,2433.8,3.06288815]
[1726262355516,3.2078,2433.9,2433.8,3.47353815]
[1726262355744,3.2078,2433.9,2433.8,13.90091528]
[1726262355912,3.2078,2433.9,2433.8,12.46401391]
[1726262356114,3.2078,2433.9,2433.8,16.1688276]
[1726262356115,1.77030113,2433.9,2433.8,16.1688276]
[1726262356425,1.77030113,2433.9,2433.8,19.48981109]
[1726262356623,3.2078,2434.2,2433.9,0.41063]
[1726262356817,3.2078,2434.2,2434.1,1.58685874]
[1726262357025,3.2078,2434.2,2434.1,1.47391489]
[1726262357211,3.2078,2434.2,2434.1,2.80521489]
[1726262357412,3.2078,2434.2,2434.0,1.05766889]
[1726262357413,3.61838,2434.2,2434.0,1.05766889]
[1726262357615,0.4106,2434.1,2434.0,1.05766889]
[1726262357917,0.41062,2434.0,2433.9,1.05766889]
[1726262358111,0.41061,2434.1,2433.8,1.05766889]
[1726262358514,0.41062,2434.0,2433.8,1.05766889]
[1726262358716,3.2078,2434.2,2433.9,1.05766889]
[1726262358717,0.41061,2434.1,2433.9,1.05766889]
[1726262359510,3.61839,2434.2,2433.9,1.05766889]
[1726262359721,3.2078,2434.2,2433.9,1.05766889]
[1726262359923,3.2078,2434.2,2434.0,1.05766889]
[1726262360817,3.61838,2434.2,2434.0,1.05766889]
[1726262361421,3.2078,2434.2,2434.0,1.05766889]
[1726262361727,3.2078,2434.2,2434.0,1.46827889]
[1726262361920,3.2078,2434.6,2434.1,3.05178711]
[1726262362121,4.54,2434.7,2434.3,1.05891201]
[1726262362426,0.41051,2434.6,2434.4,1.05891201]
[1726262362724,4.54,2434.7,2434.4,1.05891201]
[1726262362725,4.9505,2434.7,2434.4,1.05891201]
[1726262364321,4.9505,2434.7,2434.3,1.05891201]
[1726262364825,0.41052,2434.6,2434.3,1.05891201]
[1726262365425,3.61835,2434.4,2434.2,2.32141201]
[1726262365618,3.61835,2434.4,2434.2,1.2625]
[1726262365619,3.61836,2434.4,2434.2,1.2625]
[1726262365818,3.2078,2434.4,2434.2,1.2625]
[1726262366014,0.41056,2434.3,2434.2,1.2625]
[1726262367026,0.41056,2434.3,2434.0,1.05891201]
[1726262367329,3.6184,2434.1,2433.8,1.46956201]
[1726262368030,3.6184,2434.1,2433.9,1.05891201]
[1726262369528,0.41062,2434.0,2433.9,1.05891201]
[1726262370733,3.61841,2434.1,2433.9,1.05891201]
[1726262370927,0.41062,2434.0,2433.9,1.05891201]
[1726262371130,0.41062,2434.0,2433.8,1.05891201]
[1726262371924,3.61841,2434.1,2433.8,1.46956201]
[1726262372226,0.41062,2434.0,2433.8,1.05891201]
[1726262374236,0.41063,2433.9,2433.8,1.05891201]
[1726262375125,0.41062,2434.0,2433.8,1.05891201]
[1726262375826,0.41063,2433.9,2433.8,1.05891201]
[1726262376822,3.2078,2434.1,2433.8,1.05891201]
[1726262377031,0.41063,2433.9,2433.8,1.05891201]
[1726262377225,0.41062,2434.0,2433.8,1.05891201]
[1726262379126,0.41062,2434.0,2433.7,2.81407201]
[1726262379329,5.13535,2434.0,2433.7,2.40341201]
[1726262379539,0.41064,2433.9,2433.7,1.3445]
[1726262379834,3.61844,2433.9,2433.7,1.3445]
[1726262380024,0.41065,2433.8,2433.7,2.40341201]
[1726262380336,3.61844,2433.9,2433.7,2.40341201]
[1726262380944,0.41047,2434.9,2434.5,0.41052]
[1726262381229,4.5429,2435.1,2434.7,1.05799507]
[1726262381428,1.02579,2435.9,2434.7,1.05799507]
[1726262381429,0.41034,2435.7,2435.2,0.41041]
[1726262381636,0.41037,2435.5,2435.1,1.05658702]
[1726262381827,0.41033,2435.7,2435.1,1.05658702]
[1726262382027,0.41033,2435.7,2434.9,1.5869926]
[1726262382028,8.7825,2435.8,2435.3,0.41039]
[1726262382223,8.7825,2435.8,2435.3,1.05658702]
[1726262382433,0.41034,2435.7,2435.2,1.05658702]
[1726262382831,0.41036,2435.6,2435.2,1.05658702]
[1726262383130,0.41035,2435.6,2435.1,1.46700702]
[1726262383525,0.41036,2435.5,2435.1,1.05658702]
[1726262383931,0.41036,2435.5,2435.0,1.46702702]
[1726262384122,3.61816,2435.5,2435.0,1.46702702]
[1726262384326,2.88,2435.6,2435.0,0.41044]
[1726262384526,0.41037,2435.5,2435.0,0.41044]
[1726262384730,3.61817,2435.5,2435.0,0.41044]
[1726262385537,0.41039,2435.4,2435.0,0.41044]
[1726262386133,0.41039,2435.4,2434.9,3.61826]
[1726262386727,0.41041,2435.3,2434.9,3.2078]
[1726262387332,0.41042,2435.2,2434.9,3.2078]
[1726262388243,0.41042,2435.2,2434.9,3.61826]
[1726262388534,0.41041,2435.3,2434.9,3.61826]
[1726262389437,0.41041,2435.2,2434.9,3.61826]
[1726262391130,3.2078,2435.5,2435.0,0.41045]
[1726262391527,0.41039,2435.4,2435.1,0.41042]
[1726262391733,0.41039,2435.4,2435.0,0.41044]
[1726262392140,4.23365,2435.7,2435.1,0.41043]
[1726262392141,0.41037,2435.5,2435.1,0.41043]
[1726262392331,1.02585,2435.7,2435.1,0.41043]
[1726262392332,0.41039,2435.4,2435.1,0.41043]
[1726262393739,0.41042,2435.2,2434.9,3.61826]
[1726262394038,6.9067,2435.8,2434.9,3.61826]
[1726262394039,3.2078,2435.3,2434.9,3.2078]
[1726262394241,0.41042,2435.2,2434.9,3.61826]
[1726262394634,4.5901,2435.3,2434.9,3.2078]
[1726262394938,0.41045,2435.0,2434.9,3.2078]
[1726262395329,4.51765,2435.0,2434.9,3.2078]
[1726262395531,0.41046,2434.9,2434.6,1.3763]
[1726262395736,1.02612,2435.0,2434.6,1.3763]
[1726262395941,0.41049,2434.8,2434.6,1.3763]
[1726262397836,0.41047,2434.9,2434.6,1.78681]
[1726262399149,0.41046,2435.0,2434.8,3.2078]
[1726262399338,0.41046,2434.9,2434.8,3.2078]
[1726262399538,0.41044,2435.1,2434.8,3.61828]
[1726262399738,1.3137,2435.2,2434.8,3.2078]
[1726262399739,0.41045,2435.0,2434.8,3.2078]
[1726262400233,1.3137,2435.2,2434.8,3.2078]
[1726262400441,0.41046,2435.0,2434.8,3.2078]
[1726262400662,1.3137,2435.2,2434.8,3.2078]
[1726262400843,0.41046,2434.9,2434.8,3.2078]
[1726262401245,2.33976,2435.2,2434.8,3.2078]
[1726262401551,2.33976,2435.2,2434.8,3.61828]
[1726262401735,0.41044,2435.1,2434.8,3.61828]
[1726262402046,0.41045,2435.1,2434.8,3.61828]
[1726262402346,0.41045,2435.0,2434.8,3.2078]
[1726262403147,0.41044,2435.1,2434.8,3.61827]
[1726262403946,1.3137,2435.2,2434.8,3.61827]
[1726262403947,0.41042,2435.2,2434.9,0.41046]
[1726262404143,0.41042,2435.2,2434.8,3.2078]
[1726262404144,3.2078,2435.3,2434.8,6.0878]
[1726262404446,0.41039,2435.4,2435.1,3.2078]
[1726262404641,0.41039,2435.4,2435.1,0.41043]
[1726262404842,3.2078,2435.5,2435.0,0.41044]
[1726262405043,0.41039,2435.4,2435.0,0.41044]
[1726262405248,0.4104,2435.3,2435.0,0.41044]
[1726262405445,3.2078,2435.5,2435.1,0.41043]
[1726262405446,0.41039,2435.4,2435.1,0.41043]
[1726262406256,0.4104,2435.3,2435.1,0.41043]
[1726262407363,0.41043,2435.1,2435.0,1.3142]
[1726262408740,0.41044,2435.1,2434.8,6.49828]
[1726262409942,4.23377,2435.4,2434.9,0.41046]
[1726262410145,0.41044,2435.1,2434.9,0.41046]
[1726262410340,0.41044,2435.1,2434.8,6.49827]
[1726262412751,0.41042,2435.2,2434.8,7.55485702]
[1726262412948,0.4104,2435.3,2435.0,0.41045]
[1726262413448,2.7817,2435.6,2435.1,4.98892]
[1726262413654,0.41038,2435.5,2435.2,1.384]
[1726262414166,0.41038,2435.4,2435.2,2.7739]
[1726262415759,2.41439,2435.6,2435.2,2.7739]
[1726262415947,0.41039,2435.4,2435.2,2.7739]
[1726262418054,0.41037,2435.5,2435.2,3.18431]
[1726262418756,0.41038,2435.5,2435.2,2.7739]
[1726262419052,0.41037,2435.5,2435.2,4.24089702]
[1726262419455,0.41037,2435.5,2435.2,3.83048702]
[1726262420248,0.41038,2435.4,2435.2,3.83048702]
[1726262420849,0.41038,2435.4,2435.2,2.7739]
[1726262421647,0.4104,2435.3,2435.2,1.384]
[1726262421850,0.41041,2435.2,2435.1,1.3707]
[1726262422050,4.23373,2435.5,2435.0,1.05658702]
[1726262422051,0.41043,2435.1,2435.0,1.05658702]
[1726262422855,0.41043,2435.2,2435.0,1.05658702]
[1726262423558,0.41043,2435.1,2435.0,1.05658702]
[1726262424357,0.41043,2435.1,2435.0,3.05008295]
[1726262424749,0.41043,2435.1,2435.0,1.46309035]
[1726262425351,0.41043,2435.1,2435.0,3.05008295]
[1726262425554,0.41043,2435.1,2435.0,3.69159142]
[1726262425751,4.51683,2435.1,2435.0,3.05008295]
[1726262425951,3.74437,2435.4,2435.0,2.1045873]
[1726262426253,1.1459,2435.6,2435.2,1.05959536]
[1726262426453,1.3095,2436.6,2435.5,3.2078]
[1726262426766,1.3095,2436.6,2436.5,2.64886422]
[1726262426949,1.74557,2436.7,2436.5,3.69399575]
[1726262427154,1.74557,2436.7,2436.6,1.46387024]
[1726262427345,0.41018,2436.6,2436.5,1.05780734]
[1726262427544,0.41018,2436.6,2436.5,1.46177086]
[1726262427751,0.41018,2436.6,2436.5,1.05777417]
[1726262427752,4.104,2436.6,2436.5,1.05777417]
[1726262427950,1.74557,2436.7,2436.5,3.05057678]
[1726262428158,1.74557,2436.7,2436.6,1.05769094]
[1726262428460,1.74557,2436.7,2436.5,1.05769094]
[1726262428654,1.74557,2436.7,2436.4,4.26549094]
[1726262429057,1.3354,2436.7,2436.4,1.05769094]
[1726262429257,1.3354,2436.7,2436.6,3.2078]
[1726262429560,1.3354,2436.7,2436.5,3.2078]
[1726262429764,1.3354,2436.7,2436.5,4.26549094]
[1726262430349,1.3354,2436.7,2436.5,3.2078]
[1726262430554,0.41013,2436.9,2436.5,3.2078]
[1726262430752,4.5173,2437.2,2436.5,3.2078]
[1726262430753,0.41012,2437.0,2436.5,3.2078]
[1726262430965,5.7915,2437.2,2436.5,3.2078]
[1726262430966,0.41014,2436.9,2436.5,3.61798]
[1726262431464,5.7915,2437.2,2436.5,6.49798]
[1726262431465,0.41012,2437.0,2436.5,6.49798]
[1726262431760,0.41013,2436.9,2436.5,6.49798]
[1726262432452,0.41015,2436.8,2436.5,6.0878]
[1726262433664,6.81673,2437.2,2436.5,6.0878]
[1726262433874,6.81673,2437.2,2436.3,1.65822]
[1726262433875,0.4102,2436.5,2436.2,3.2078]
[1726262434064,0.4102,2436.5,2436.3,3.2078]
[1726262434361,0.4102,2436.5,2436.4,3.2078]
[1726262434862,4.5142,2436.5,2436.4,3.2078]
[1726262436162,0.41022,2436.4,2436.1,3.2078]
[1726262436469,0.41022,2436.4,2436.1,3.61806]
[1726262436764,0.41023,2436.3,2436.1,3.2078]
[1726262436956,2.5773,2436.6,2436.1,3.2078]
[1726262437156,0.41022,2436.4,2436.1,3.61805]
[1726262437958,0.41021,2436.5,2436.2,0.41024]
[1726262438263,0.41019,2436.5,2436.4,3.2078]
[1726262438688,4.51419,2436.5,2436.4,3.2078]
[1726262442095,0.41019,2436.5,2436.4,3.2078]
[1726262442256,6.56517,2436.5,2436.4,3.2078]
[1726262442454,6.56517,2436.5,2435.5,2.11909138]
[1726262442455,12.0878,2436.5,2435.3,1.69889716]
[1726262442660,12.0878,2436.5,2435.2,3.84900622]
[1726262442661,0.4104,2435.3,2435.2,3.84900622]
[1726262443057,0.41039,2435.4,2435.2,3.2078]
[1726262443257,1.2794,2435.6,2435.2,3.2078]
[1726262443658,0.4103,2435.9,2435.6,0.41034]
[1726262443859,0.41029,2436.0,2435.8,3.2078]
[1726262444062,1.02565,2436.2,2435.8,3.2078]
[1726262444364,0.41029,2436.0,2435.8,3.2078]
[1726262444667,1.02565,2436.2,2435.8,3.2078]
[1726262444668,0.4103,2435.9,2435.8,3.2078]
[1726262446368,4.5159,2435.9,2435.8,3.2078]
[1726262446760,10.5159,2435.9,2435.8,3.2078]
[1726262447158,11.8068,2435.9,2435.8,3.2078]
[1726262448265,12.83255,2435.9,2435.8,3.2078]
[1726262452974,6.83255,2435.9,2435.8,3.2078]
[1726262453461,0.41037,2435.5,2435.3,3.2078]
[1726262453876,0.41038,2435.4,2435.3,3.2078]
[1726262454277,5.54274,2435.4,2435.3,3.2078]
[1726262454477,4.51678,2435.4,2435.3,3.2078]
[1726262464776,1.0258,2435.8,2435.3,3.2078]
[1726262464977,0.41036,2435.6,2435.3,3.2078]
[1726262465175,4.52828,2436.0,2435.4,1.02596]
[1726262465373,0.4103,2435.9,2435.7,3.2078]
[1726262465689,0.4103,2435.9,2435.8,2.5932]
[1726262467282,1.02558,2436.3,2435.8,2.5932]
[1726262467483,0.41028,2436.0,2435.8,2.5932]
[1726262467879,0.41029,2436.0,2435.8,2.5932]
[1726262469672,0.4103,2435.9,2435.8,2.5932]
[1726262469875,0.41029,2436.0,2435.8,2.5932]
[1726262470575,1.02565,2436.2,2435.8,2.5932]
[1726262470774,0.41029,2436.0,2435.8,2.5932]
[1726262470977,0.4103,2435.9,2435.8,2.5932]
[1726262471380,0.41029,2436.0,2435.8,2.5932]
[1726262472578,0.4103,2435.9,2435.8,2.5932]
[1726262472976,1.02565,2436.2,2435.8,2.5932]
[1726262473288,0.41029,2436.0,2435.8,2.5932]
[1726262473583,0.41028,2436.0,2435.8,3.00351]
[1726262474384,0.41028,2436.0,2435.8,2.5932]
[1726262474581,0.4103,2435.9,2435.8,2.5932]
[1726262478388,0.41031,2435.8,2435.7,3.2078]
[1726262478690,0.41038,2435.4,2435.3,3.30436817]
[1726262478899,0.41037,2435.5,2435.3,5.98009761]
[1726262480485,1.02583,2435.7,2435.3,5.98009761]
[1726262480486,0.41038,2435.4,2435.3,5.57017749]
[1726262480891,0.41038,2435.4,2435.3,4.5132]
[1726262482095,1.43634,2435.4,2435.3,3.2078]
[1726262482294,5.54274,2435.4,2435.3,3.2078]
[1726262482497,12.5687,2435.4,2435.3,3.2078]
[1726262482699,0.41045,2435.0,2434.8,1.05697749]
[1726262482893,0.41045,2435.0,2434.7,4.26477749]
[1726262482894,0.41048,2434.8,2434.7,4.26477749]
[1726262483098,0.4105,2434.7,2434.6,1.05697749]
[1726262483490,0.4105,2434.7,2434.5,2.39477749]
[1726262483794,0.4105,2434.7,2434.5,2.80530749]
[1726262484503,0.4105,2434.7,2434.5,3.08929041]
[1726262484898,0.4105,2434.7,2434.6,1.05697749]
[1726262485097,0.41051,2434.6,2434.5,2.39477749]
[1726262485394,0.41053,2434.5,2434.4,3.2078]
[1726262486999,4.51853,2434.5,2434.4,3.2078]
[1726262487190,4.108,2434.5,2434.2,1.05697749]
[1726262487398,0.41056,2434.3,2434.1,3.65857749]
[1726262487993,0.41056,2434.3,2434.2,1.05697749]
[1726262488213,0.41056,2434.3,2434.1,3.65857749]
[1726262488397,0.41058,2434.3,2434.1,2.6016]
[1726262488593,1.02634,2434.5,2434.1,2.6016]
[1726262488800,0.41058,2434.2,2434.1,2.6016]
[1726262491004,0.41057,2434.3,2434.1,2.6016]
[1726262491703,0.4106,2434.1,2434.0,6.0878]
[1726262491907,0.4106,2434.1,2434.0,4.26477749]
[1726262492096,0.41059,2434.2,2434.0,3.2078]
[1726262492401,1.02646,2434.2,2433.8,2.40967749]
[1726262492601,0.41063,2433.9,2433.8,1.3527]
[1726262492806,1.02646,2434.2,2433.8,1.3527]
[1726262492992,0.41063,2434.0,2433.8,1.3527]
[1726262493301,0.41063,2433.9,2433.8,1.3527]
[1726262493907,0.41065,2433.8,2433.7,1.02675452]
[1726262495099,0.41065,2433.8,2433.6,3.2078]
[1726262495500,0.41066,2433.8,2433.6,6.0878]
[1726262495707,1.02653,2434.1,2433.6,3.2078]
[1726262496000,0.41064,2433.9,2433.6,3.2078]
[1726262496604,0.41063,2434.0,2433.6,3.61848]
[1726262496811,0.41062,2434.0,2433.9,3.2078]
[1726262497402,4.4773,2434.3,2433.9,3.2078]
[1726262497403,0.41061,2434.1,2433.9,3.2078]
[1726262497605,4.4773,2434.3,2433.9,3.2078]
[1726262497897,0.41057,2434.3,2434.2,3.2078]
[1726262498205,4.118,2434.7,2434.2,6.0878]
[1726262498402,0.41055,2434.4,2434.3,3.2078]
[1726262498806,0.41057,2434.3,2434.0,5.7781]
[1726262499129,2.5992,2434.7,2434.0,5.7781]
[1726262499130,1.3033,2434.7,2434.1,2.88]
[1726262499303,0.41051,2434.6,2434.3,3.2078]
[1726262499500,0.4105,2434.7,2434.3,3.61836]
[1726262499697,0.41051,2434.6,2434.3,3.2078]
[1726262500102,3.64776,2435.0,2434.3,3.61836]
[1726262500103,0.41051,2434.7,2434.3,3.61836]
[1726262500298,0.41051,2434.6,2434.3,3.2078]
[1726262500898,0.41051,2434.6,2434.3,3.61836]
[1726262501202,0.41051,2434.6,2434.3,3.2078]
[1726262501411,0.41051,2434.6,2434.3,3.61836]
[1726262501602,0.41051,2434.6,2434.3,3.2078]
[1726262501798,0.41054,2434.5,2434.3,3.2078]
[1726262502402,0.41057,2434.3,2434.0,5.7781]
[1726262502604,1.02634,2434.5,2434.0,2.5703]
[1726262502808,0.41059,2434.2,2434.0,2.5703]
[1726262503203,0.4106,2434.1,2434.0,2.5703]
[1726262503404,1.02642,2434.3,2434.0,3.2078]
[1726262503606,0.4106,2434.1,2434.0,3.2078]
[1726262504405,0.4106,2434.1,2433.7,3.61846]
[1726262504611,0.41055,2434.4,2434.1,0.4106]
[1726262504905,1.02617,2434.9,2434.3,3.61836]
[1726262504906,2.6127,2434.9,2434.3,3.61836]
[1726262505105,3.02317,2434.9,2434.4,0.41053]
[1726262505297,0.41047,2434.9,2434.6,3.2078]
[1726262505505,0.41048,2434.8,2434.6,3.2078]
[1726262505698,0.41048,2434.8,2434.7,1.3271]
[1726262509900,0.4105,2434.7,2434.6,3.2078]
[1726262510307,4.5177,2434.7,2434.6,3.2078]
[1726262511207,4.1072,2434.7,2434.3,1.3075]
[1726262511411,0.41053,2434.6,2434.3,1.3075]
[1726262511914,0.41052,2434.6,2434.3,1.71806]
[1726262512710,0.41052,2434.6,2434.3,1.3075]
[1726262513308,0.41053,2434.5,2434.3,1.3075]
[1726262514315,0.41055,2434.4,2434.3,1.3075]
[1726262515316,0.41054,2434.5,2434.3,1.3075]
[1726262515614,1.02625,2434.7,2434.3,1.3075]
[1726262515812,0.41055,2434.4,2434.3,1.3075]
[1726262517213,0.41054,2434.5,2434.3,1.71806]
[1726262520213,2.35123,2434.8,2434.4,0.41055]
[1726262520415,0.41051,2434.6,2434.5,3.2078]
[1726262524809,2.35123,2434.8,2434.5,3.2078]
[1726262525011,1.3095,2435.1,2434.6,3.93697749]
[1726262525219,1.71994,2435.1,2434.9,0.41046]
[1726262525521,1.71994,2435.1,2434.9,1.46743749]
[1726262525718,1.71994,2435.1,2434.9,1.68806]
[1726262526223,1.71994,2435.1,2434.9,1.2776]
[1726262526420,1.3095,2435.1,2434.9,1.68806]
[1726262526624,0.41044,2435.1,2434.9,1.2776]
[1726262526825,1.3598,2435.5,2434.9,5.384]
[1726262527127,0.41033,2435.8,2435.4,0.41038]
[1726262527322,0.41033,2435.7,2435.5,1.2776]
[1726262527521,0.41035,2435.6,2435.5,1.2776]
[1726262528225,0.41034,2435.7,2435.5,1.2776]
[1726262529022,0.41034,2435.7,2435.5,4.4854]
[1726262529222,4.51595,2435.6,2435.5,3.2078]
[1726262529424,1.76815,2435.6,2435.5,3.2078]
[1726262529625,5.87375,2435.6,2435.5,3.2078]
[1726262533829,14.6712,2435.6,2435.1,1.05697749]
[1726262534032,14.6712,2435.6,2434.7,2.42517749]
[1726262534033,0.41047,2434.9,2434.7,2.42517749]
[1726262534240,0.41047,2434.9,2434.7,1.3682]
[1726262534533,0.41048,2434.8,2434.7,1.3682]
[1726262534735,0.41047,2434.9,2434.7,1.3682]
[1726262535232,0.41048,2434.8,2434.7,1.3682]
[1726262535622,0.4105,2434.7,2434.6,3.2078]
[1726262536432,0.4105,2434.7,2434.6,4.5956]
[1726262537535,0.41049,2434.8,2434.6,4.5956]
[1726262538338,0.4105,2434.7,2434.6,4.5956]
[1726262539225,3.59401,2435.1,2434.6,4.5956]
[1726262539426,0.41046,2434.9,2434.8,3.2078]
[1726262544137,1.43663,2434.9,2434.8,3.2078]
[1726262545343,6.57,2434.9,2434.8,3.2078]
[1726262545842,0.41051,2434.6,2434.5,3.2078]
[1726262546041,1.4368,2434.6,2434.5,3.2078]
[1726262548241,1.02636,2434.5,2434.2,3.2078]
[1726262548441,0.41056,2434.3,2434.2,3.2078]
[1726262548637,1.02636,2434.5,2434.2,3.2078]
[1726262548836,1.02636,2434.5,2434.2,4.2677645]
[1726262549249,0.41056,2434.3,2434.2,4.2677645]
[1726262549443,1.02636,2434.5,2434.2,4.2677645]
[1726262549646,0.41056,2434.3,2434.2,3.2078]
[1726262550451,0.41056,2434.3,2434.2,4.2677645]
[1726262550641,0.41055,2434.4,2434.2,5.73048185]
[1726262550841,0.41055,2434.4,2434.3,1.0599645]
[1726262551339,0.41049,2434.8,2434.5,0.41053]
[1726262551541,0.41049,2434.8,2434.7,3.2078]
[1726262551735,2.38143,2435.0,2434.7,3.2078]
[1726262551736,1.3553,2435.0,2434.7,3.2078]
[1726262551937,4.118,2435.2,2434.7,3.2078]
[1726262552141,5.14407,2435.2,2434.7,3.2078]
[1726262552440,0.41048,2434.8,2434.7,3.2078]
[1726262552641,4.118,2435.2,2434.7,3.6183]
[1726262552837,0.41047,2434.9,2434.7,4.2677645]
[1726262553040,0.41047,2434.9,2434.7,3.2078]
[1726262556648,1.02607,2435.2,2434.7,3.61829]
[1726262556849,0.41046,2435.0,2434.7,4.6782545]
[1726262557146,0.41044,2435.1,2434.8,0.41047]
[1726262557648,0.41044,2435.1,2434.8,0.41048]
[1726262558048,0.41045,2435.0,2434.8,0.41048]
[1726262559253,0.41044,2435.1,2434.8,0.41048]
[1726262559550,0.41045,2435.0,2434.8,0.41048]
[1726262560542,0.41045,2435.0,2434.9,3.2078]
[1726262563247,0.41044,2435.1,2434.9,3.61826]
[1726262563848,4.2334,2436.3,2435.0,4.1064]
[1726262564050,4.2334,2436.3,2435.9,3.2078]
[1726262564051,3.9654,2436.3,2435.9,3.2078]
[1726262564261,1.3386,2436.3,2436.2,0.41024]
[1726262564452,0.41022,2436.4,2436.1,1.05840817]
[1726262564748,1.02541,2436.7,2436.3,3.2078]
[1726262564951,0.4102,2436.5,2436.3,3.2078]
[1726262566154,0.41021,2436.4,2436.3,3.2078]
[1726262566657,0.4102,2436.5,2436.3,3.2078]
[1726262567350,1.02544,2436.7,2436.3,3.2078]
[1726262567351,0.41021,2436.4,2436.3,3.2078]
[1726262568355,0.4102,2436.5,2436.3,3.2078]
[1726262568747,0.4102,2436.5,2436.3,4.4746]
[1726262570751,3.9654,2436.9,2436.3,3.2078]
[1726262570752,0.41021,2436.4,2436.3,3.2078]
[1726262571850,5.13033,2436.4,2435.9,4.4808]
[1726262572052,3.9619,2436.3,2435.9,4.4808]
[1726262572960,0.41025,2436.2,2436.1,3.2078]
[1726262575455,0.41023,2436.3,2436.1,3.2078]
[1726262577653,0.41023,2436.3,2436.2,3.2078]
[1726262584061,0.41026,2436.2,2435.9,4.56329]
[1726262584377,0.41026,2436.2,2436.1,3.2078]
[1726262585358,0.41026,2436.2,2435.9,4.56329]
[1726262585559,0.41026,2436.2,2436.1,3.2078]
[1726262586060,0.41026,2436.2,2435.9,4.56329]
[1726262586266,0.41026,2436.2,2436.1,3.2078]
[1726262587761,0.41028,2436.0,2435.9,4.153]
[1726262588156,0.41028,2436.0,2435.9,8.2578]
[1726262589268,0.41027,2436.1,2435.9,8.2578]
[1726262589461,0.41027,2436.1,2435.9,4.153]
[1726262589769,0.41027,2436.1,2435.9,8.2578]
[1726262590265,0.41028,2436.0,2435.9,8.2578]
[1726262590459,0.41027,2436.1,2435.9,4.153]
[1726262590856,0.41027,2436.1,2435.9,8.2578]
[1726262592166,0.41025,2436.2,2436.0,0.41028]
[1726262592368,0.41024,2436.3,2436.1,3.2078]
[1726262592567,0.41024,2436.3,2436.1,4.5779]
[1726262592963,1.02549,2436.5,2436.1,4.5779]
[1726262593160,0.41024,2436.3,2436.1,4.98816]
[1726262593360,0.41024,2436.3,2436.1,4.5779]
[1726262593865,1.02549,2436.5,2436.1,4.5779]
[1726262593866,0.41024,2436.2,2436.1,4.5779]
[1726262594366,1.02549,2436.5,2436.1,4.5779]
[1726262595065,1.02549,2436.5,2436.1,4.98816]
[1726262595262,1.02549,2436.5,2436.1,4.5779]
[1726262595471,0.41024,2436.3,2436.1,4.5779]
[1726262595707,1.02549,2436.5,2436.1,4.5779]
[1726262595708,0.41024,2436.2,2436.1,4.5779]
[1726262595867,0.41024,2436.3,2436.1,4.5779]
[1726262596275,1.02549,2436.5,2436.1,5.9079]
[1726262596573,1.02549,2436.5,2436.1,6.31816]
[1726262596769,1.02549,2436.5,2436.1,5.9079]
[1726262596972,0.41024,2436.2,2436.1,5.9079]
[1726262597472,0.41024,2436.3,2436.1,5.9079]
[1726262598966,0.41024,2436.2,2436.1,5.9079]
[1726262600476,1.02549,2436.5,2436.1,5.9079]
[1726262601075,0.41024,2436.2,2436.1,5.9079]
[1726262602069,0.41023,2436.4,2436.1,6.31815]
[1726262603371,0.41023,2436.3,2436.1,6.31815]
[1726262605780,0.41028,2436.0,2435.8,4.26620817]
[1726262605975,1.02579,2435.8,2435.5,1.05840817]
[1726262606293,1.02579,2435.8,2435.4,3.2078]
[1726262606294,0.41036,2435.5,2435.4,3.2078]
[1726262607480,0.41036,2435.5,2435.4,4.26620817]
[1726262608477,0.41036,2435.5,2435.4,4.66983604]
[1726262609184,0.41036,2435.5,2435.4,6.37154238]
[1726262609483,0.41036,2435.5,2435.4,6.90120874]
[1726262609984,0.41036,2435.5,2435.4,6.9012116]
[1726262610494,0.41036,2435.5,2435.4,6.25978279]
[1726262611486,0.41036,2435.5,2435.4,5.73069152]
[1726262612475,0.41036,2435.5,2435.4,4.26865548]
[1726262612785,17.22011,2435.5,2435.0,1.06085548]
[1726262612980,0.41045,2435.0,2434.9,2.40845548]
[1726262613582,0.41045,2435.0,2434.9,1.3476]
[1726262615586,0.41047,2434.9,2434.7,4.26865548]
[1726262615791,0.41048,2434.8,2434.7,4.26865548]
[1726262616087,0.41048,2434.8,2434.6,2.42935548]
[1726262617188,0.41048,2434.8,2434.7,3.2078]
[1726262621084,1.69398,2434.8,2434.7,3.2078]
[1726262623991,2.72019,2434.8,2434.7,3.2078]
[1726262625894,6.82739,2434.8,2434.7,3.2078]
[1726262626096,6.82739,2434.8,2434.3,6.31575]
[1726262626097,0.41053,2434.6,2434.3,6.31575]
[1726262626793,0.41054,2434.5,2434.3,6.31575]
[1726262628490,0.41055,2434.5,2434.3,5.9052]